bitfinex-derivatives/quotes_SOLF0:USTF0_20250212
["timestamp","ask_amount","ask_price","bid_price","bid_amount"]
[1739324951108,0.03606335,197.88,197.84,0.03868195]
[1739324952210,5.0546,197.87,197.84,0.03868195]
[1739324952412,0.03606335,197.88,197.84,0.03868195]
[1739324953002,5.0546,197.87,197.84,0.03868195]
[1739324953409,5.0551,197.85,197.84,0.03868195]
[1739324954006,5.0548,197.87,197.84,0.03868195]
[1739324954213,0.03606335,197.88,197.84,0.03868195]
[1739324954615,5.0546,197.87,197.84,0.03868195]
[1739324955110,0.03606335,197.88,197.84,0.03868195]
[1739324955411,5.0546,197.87,197.84,0.03868195]
[1739324955612,0.03606335,197.88,197.84,0.03868195]
[1739324956915,5.0546,197.87,197.84,0.03868195]
[1739324957415,0.03606335,197.88,197.84,0.03868195]
[1739324957615,5.0548,197.86,197.84,0.03868195]
[1739324958510,0.03606335,197.88,197.84,0.03868195]
[1739324959211,5.0549,197.86,197.84,0.03868195]
[1739324959917,5.0546,197.87,197.84,0.03868195]
[1739324960419,0.03606335,197.88,197.84,0.03868195]
[1739324960610,0.03606335,197.88,197.85,5.055]
[1739324961014,0.03606335,197.88,197.87,5.0546]
[1739324961712,0.03606335,197.88,197.87,13.88183856]
[1739324963416,0.03606335,197.88,197.87,8.82723856]
[1739324963617,0.03606335,197.88,197.86,5.0547]
[1739324964215,0.03606335,197.88,197.87,5.0546]
[1739324965013,5.0525,197.95,197.87,13.79346236]
[1739324965218,1.5391,197.98,197.88,1.5322]
[1739324965817,5.0528,197.94,197.9,5.0538]
[1739324966322,5.08567082,197.94,197.9,5.0873582]
[1739324966730,5.08567082,197.94,197.9,0.0335582]
[1739324967931,0.03287082,197.94,197.9,0.0335582]
[1739324968532,5.08567082,197.94,197.9,0.0335582]
[1739324969229,5.0531,197.93,197.9,0.0335582]
[1739324971631,0.03287082,197.94,197.9,0.0335582]
[1739324971935,5.0535,197.91,197.9,0.0335582]
[1739324972731,5.0533,197.92,197.9,0.0335582]
[1739324973931,0.03287082,197.94,197.9,0.0335582]
[1739324974132,5.08577082,197.94,197.9,0.0335582]
[1739324975029,5.0531,197.93,197.9,5.0872582]
[1739324975725,0.03287082,197.94,197.91,5.0534]
[1739324976633,5.08567082,197.94,197.91,5.0534]
[1739324976828,5.08567082,197.94,197.9,5.0873582]
[1739324977132,5.0531,197.93,197.9,0.0335582]
[1739324977830,0.03287082,197.94,197.9,0.0335582]
[1739324978227,0.03287082,197.94,197.93,5.053]
[1739324978636,0.03287082,197.94,197.9,13.82702056]
[1739324979336,0.03287082,197.94,197.9,18.88072056]
[1739324980334,0.03287082,197.94,197.9,13.82702056]
[1739324981237,5.0532,197.93,197.9,0.0335582]
[1739324982135,0.03287082,197.94,197.91,5.0535]
[1739324982528,0.03287082,197.94,197.9,0.0335582]
[1739324982733,5.08567082,197.94,197.9,5.0871582]
[1739324983230,5.08567082,197.94,197.91,5.0535]
[1739324983530,0.03287082,197.94,197.91,5.0535]
[1739324983731,0.03287082,197.94,197.9,13.82702056]
[1739324985438,0.03287082,197.94,197.93,13.79346236]
[1739324985637,0.03287082,197.94,197.93,8.82018904]
[1739324985839,0.03287082,197.94,197.93,13.87318904]
[1739324986238,1.5858,198.02,197.93,8.82018904]
[1739324986537,8.82018904,198.05,197.99,8.82018904]
[1739324987339,1.6153,198.06,198.01,8.82018904]
[1739324988640,5.0505,198.03,198.0,0.0352871]
[1739324989333,5.0509,198.02,198.0,0.0352871]
[1739324992143,8.82018904,198.05,198.0,0.0352871]
[1739324992345,5.051,198.01,198.0,0.0352871]
[1739324994847,8.82018904,198.05,198.0,0.0352871]
[1739324995147,5.0508,198.02,198.0,0.0352871]
[1739324996643,5.051,198.01,198.0,0.0352871]
[1739324998247,8.82018904,198.05,198.0,0.0352871]
[1739324998841,5.0507,198.03,198.0,0.0352871]
[1739324999042,1.6153,198.06,198.0,0.0352871]
[1739324999344,5.0503,198.04,198.0,5.0862871]
[1739324999743,1.6153,198.06,198.01,8.82018904]
[1739324999951,5.0497,198.06,198.03,8.82018904]
[1739325000144,1.5019,198.08,198.03,8.82018904]
[1739325000346,1.5901,198.12,198.07,8.82018904]
[1739325000548,6.6383,198.12,198.09,8.82018904]
[1739325000751,5.0482,198.12,198.09,8.82018904]
[1739325001052,139.61519955,198.13,198.09,8.82018904]
[1739325001551,139.61519955,198.13,198.11,8.82018904]
[1739325001947,179.56649944,198.15,198.11,8.82018904]
[1739325001948,139.61519955,198.15,198.11,8.82018904]
[1739325002749,139.61519955,198.15,198.13,8.82018904]
[1739325003748,139.61519955,198.15,198.13,13.86808904]
[1739325004149,139.61519955,198.15,198.13,8.82018904]
[1739325005554,5.0469,198.18,198.13,8.82018904]
[1739325005755,5.0469,198.18,198.15,8.82018904]
[1739325006147,8.82018904,198.19,198.13,8.82018904]
[1739325006950,5.0472,198.16,198.13,8.82018904]
[1739325007351,0.20915,198.2,198.15,8.82018904]
[1739325007656,8.82018904,198.23,198.15,8.82018904]
[1739325007957,5.046,198.21,198.15,8.82018904]
[1739325008255,8.82018904,198.23,198.17,0.03503218]
[1739325008454,5.0465,198.19,198.17,0.03503218]
[1739325008849,8.82018904,198.23,198.17,0.03503218]
[1739325009353,5.0464,198.19,198.17,0.03503218]
[1739325010053,8.82018904,198.23,198.17,0.03503218]
[1739325010757,5.0464,198.19,198.17,0.03503218]
[1739325011457,8.82018904,198.23,198.17,8.85522122]
[1739325012156,5.0462,198.2,198.17,8.85522122]
[1739325012655,5.0466,198.18,198.17,0.03503218]
[1739325014057,5.0475,198.15,198.13,8.82018904]
[1739325014253,8.82018904,198.19,198.13,8.82018904]
[1739325014757,5.0474,198.15,198.13,8.82018904]
[1739325014957,8.82018904,198.19,198.13,8.82018904]
[1739325015259,5.0471,198.17,198.15,8.82018904]
[1739325015556,0.03288768,198.18,198.15,8.82018904]
[1739325016053,0.03288768,198.18,198.17,8.82018904]
[1739325016958,0.03288768,198.18,198.15,8.82018904]
[1739325017156,0.03288768,198.18,198.14,0.03777309]
[1739325018563,5.0472,198.16,198.14,0.03777309]
[1739325018756,0.03288768,198.18,198.14,0.03777309]
[1739325019466,0.03288768,198.18,198.15,8.82018904]
[1739325020165,5.07978768,198.18,198.15,8.82018904]
[1739325020958,5.0471,198.17,198.15,8.82018904]
[1739325021164,0.03288768,198.18,198.15,8.82018904]
[1739325021666,5.0469,198.17,198.15,8.82018904]
[1739325023167,0.03288768,198.18,198.15,8.82018904]
[1739325023757,0.03288768,198.18,198.17,8.82018904]
[1739325024159,0.03288768,198.18,198.15,8.82018904]
[1739325024358,5.07978768,198.18,198.15,8.82018904]
[1739325024763,0.03288768,198.18,198.15,8.82018904]
[1739325025768,0.03288768,198.18,198.17,8.82018904]
[1739325026271,5.07978768,198.18,198.15,8.82018904]
[1739325026473,0.03288768,198.18,198.15,8.82018904]
[1739325027473,5.0474,198.16,198.14,0.03777309]
[1739325027869,0.03288768,198.18,198.14,0.03777309]
[1739325028066,13.86758904,198.15,198.14,0.03777309]
[1739325030376,8.82018904,198.11,198.05,8.82018904]
[1739325030874,8.82018904,198.11,198.03,8.82018904]
[1739325031076,5.0495,198.07,198.03,8.82018904]
[1739325031471,5.0818883,198.07,198.03,8.85279885]
[1739325031674,0.0323883,198.07,198.03,8.85279885]
[1739325032573,0.0323883,198.07,198.05,8.82018904]
[1739325032875,0.0323883,198.07,198.06,5.0497]
[1739325033077,0.0323883,198.07,198.05,8.82018904]
[1739325033575,5.0481,198.13,198.05,8.82018904]
[1739325033772,11.87698904,198.17,198.1,8.82018904]
[1739325033970,5.0474,198.15,198.1,8.82018904]
[1739325034170,11.87698904,198.17,198.1,8.82018904]
[1739325034676,0.03566571,198.15,198.12,0.03776343]
[1739325035176,5.0479,198.13,198.12,0.03776343]
[1739325035377,0.03566571,198.15,198.12,0.03776343]
[1739325035572,5.0477,198.14,198.12,8.85795247]
[1739325035775,0.03566571,198.15,198.12,8.85795247]
[1739325036367,0.03566571,198.15,198.14,8.82018904]
[1739325038279,0.03566571,198.15,198.14,13.86788904]
[1739325038584,148.43538859,198.23,198.14,13.86788904]
[1739325038881,148.43538859,198.23,198.16,8.82018904]
[1739325039083,148.43538859,198.23,198.18,8.82018904]
[1739325039581,5.0461,198.2,198.19,0.03298599]
[1739325040583,8.82018904,198.23,198.19,0.03298599]
[1739325040785,5.0458,198.22,198.19,0.03298599]
[1739325040985,8.82018904,198.23,198.19,0.03298599]
[1739325041384,5.0461,198.2,198.19,0.03298599]
[1739325041585,144.91094984,198.24,198.19,0.03298599]
[1739325041782,5.29575029,198.24,198.19,0.03298599]
[1739325041982,5.0455,198.23,198.19,0.03298599]
[1739325042183,1.5087,198.24,198.19,0.03298599]
[1739325042384,8.82018904,198.23,198.19,0.03298599]
[1739325043682,1.5087,198.24,198.19,0.03298599]
[1739325043886,9.06031904,198.25,198.2,8.82018904]
[1739325044387,5.0455,198.23,198.2,8.82018904]
[1739325045086,5.0451,198.24,198.2,8.82018904]
[1739325045282,9.06031904,198.25,198.2,8.82018904]
[1739325045884,5.0457,198.22,198.2,8.82018904]
[1739325046086,8.82018904,198.25,198.19,0.03298599]
[1739325046387,8.82018904,198.23,198.19,0.03298599]
[1739325046591,5.0461,198.2,198.19,0.03298599]
[1739325050791,5.0451,198.24,198.19,0.03298599]
[1739325051089,8.82018904,198.25,198.2,8.82018904]
[1739325051287,5.0456,198.22,198.2,8.82018904]
[1739325051591,148.43538859,198.25,198.19,0.03298599]
[1739325051890,5.0459,198.21,198.19,0.03298599]
[1739325052891,5.0461,198.2,198.19,0.03298599]
[1739325058100,5.0459,198.21,198.19,0.03298599]
[1739325058402,8.82018904,198.23,198.19,0.03298599]
[1739325059296,5.0461,198.2,198.19,0.03298599]
[1739325062898,8.82018904,198.23,198.19,0.03298599]
[1739325063198,5.0457,198.22,198.2,8.82018904]
[1739325063601,8.82018904,198.25,198.2,8.82018904]
[1739325064002,5.0456,198.22,198.2,8.82018904]
[1739325065903,5.0456,198.22,198.19,0.03298599]
[1739325066102,5.0454,198.23,198.19,0.03298599]
[1739325066404,5.0454,198.23,198.2,8.82018904]
[1739325066608,8.82018904,198.25,198.19,0.03298599]
[1739325066903,8.82018904,198.23,198.19,0.03298599]
[1739325067104,5.0476,198.15,198.12,8.82018904]
[1739325067405,8.82018904,198.17,198.1,8.82018904]
[1739325067607,8.82018904,198.15,198.09,1.5004]
[1739325067901,8.82018904,198.15,198.08,8.82018904]
[1739325068200,8.82018904,198.11,198.04,8.82018904]
[1739325068403,0.03784922,198.13,198.1,0.03703401]
[1739325068603,0.03784922,198.13,198.0,8.82018904]
[1739325068805,8.82018904,198.06,198.0,8.82018904]
[1739325069805,0.03545889,198.05,198.01,0.03813078]
[1739325071401,5.08555889,198.05,198.01,0.03813078]
[1739325071607,0.03545889,198.05,198.01,0.03813078]
[1739325072007,5.0507,198.02,198.01,0.03813078]
[1739325072399,13.77619025,198.04,197.91,15.38479025]
[1739325072603,13.77619025,198.04,197.93,5.053]
[1739325072805,13.77619025,198.04,197.91,15.38479025]
[1739325073208,5.0518,197.98,197.91,15.38479025]
[1739325073410,3.1252,198.09,197.91,1.6086]
[1739325073411,13.77619025,198.01,197.91,1.6086]
[1739325073610,0.03834536,197.96,197.93,0.03761246]
[1739325073914,5.0525,197.95,197.93,0.03761246]
[1739325074609,0.03834536,197.96,197.93,0.03761246]
[1739325075310,5.09064536,197.96,197.93,0.03761246]
[1739325075509,0.03834536,197.96,197.93,0.03761246]
[1739325076406,5.0525,197.95,197.93,0.03761246]
[1739325076611,0.03834536,197.96,197.93,0.03761246]
[1739325077813,5.0526,197.95,197.93,0.03761246]
[1739325078010,0.03834536,197.96,197.93,0.03761246]
[1739325078716,5.0528,197.94,197.93,0.03761246]
[1739325079810,5.0535,197.92,197.85,13.77619025]
[1739325080009,13.77619025,197.95,197.84,5.0551]
[1739325080515,13.77619025,197.95,197.82,13.77619025]
[1739325080910,0.03555736,197.9,197.87,0.03610602]
[1739325082617,5.08955736,197.9,197.87,0.03610602]
[1739325082811,0.03555736,197.9,197.87,0.03610602]
[1739325083506,5.0543,197.89,197.87,0.03610602]
[1739325083707,0.03555736,197.9,197.87,0.03610602]
[1739325084213,5.0543,197.88,197.87,0.03610602]
[1739325085410,0.03555736,197.9,197.87,0.03610602]
[1739325086715,5.0543,197.88,197.87,0.03610602]
[1739325087713,5.054,197.89,197.87,0.03610602]
[1739325088214,0.03555736,197.9,197.87,0.03610602]
[1739325088413,5.0543,197.88,197.87,0.03610602]
[1739325088820,5.0552,197.85,197.79,5.0565]
[1739325089021,15.29979025,197.89,197.79,5.0565]
[1739325089508,5.0553,197.85,197.76,13.77619025]
[1739325089711,5.0553,197.85,197.8,5.0563]
[1739325089907,0.03795011,197.82,197.8,5.0563]
[1739325090318,0.03795011,197.82,197.79,0.03272176]
[1739325091420,0.03795011,197.82,197.79,13.80891201]
[1739325091621,0.03795011,197.82,197.81,5.0561]
[1739325092320,1.5593,197.91,197.79,13.80891201]
[1739325092620,1.5593,197.91,197.84,5.0552]
[1739325092815,5.0544,197.88,197.79,13.77619025]
[1739325093016,1.5593,197.91,197.84,5.0553]
[1739325093216,1.5593,197.91,197.79,13.77619025]
[1739325093419,5.0546,197.87,197.79,13.77619025]
[1739325093614,5.09157372,197.87,197.83,0.0380853]
[1739325094219,0.03697372,197.87,197.83,0.0380853]
[1739325094919,0.03697372,197.87,197.84,5.0553]
[1739325095322,0.03697372,197.87,197.83,0.0380853]
[1739325096421,0.03697372,197.87,197.86,5.0548]
[1739325100125,3.0955,197.97,197.91,5.0533]
[1739325100324,3.0955,197.97,197.88,13.77619025]
[1739325100725,15.29039025,198.01,197.93,5.0528]
[1739325100926,13.77619025,198.01,197.93,5.0528]
[1739325101523,0.03401787,197.98,197.95,0.03355159]
[1739325102431,5.08601787,197.98,197.95,0.03355159]
[1739325102628,0.03401787,197.98,197.95,0.03355159]
[1739325103733,0.03401787,197.98,197.96,5.0522]
[1739325104826,0.03401787,197.98,197.95,5.08605159]
[1739325105027,0.03401787,197.98,197.95,0.03355159]
[1739325107037,5.08591787,197.98,197.95,0.03355159]
[1739325107237,0.03401787,197.98,197.95,0.03355159]
[1739325108833,5.052,197.97,197.95,0.03355159]
[1739325111042,5.08581787,197.98,197.95,0.03355159]
[1739325111942,0.03401787,197.98,197.95,0.03355159]
[1739325112236,0.03401787,197.98,197.96,5.0522]
[1739325112838,0.03401787,197.98,197.95,0.03355159]
[1739325113039,0.03401787,197.98,197.95,5.08605159]
[1739325113645,0.03401787,197.98,197.95,0.03355159]
[1739325113941,5.08601787,197.98,197.95,0.03355159]
[1739325114843,0.03401787,197.98,197.95,0.03355159]
[1739325115044,0.03401787,197.98,197.95,5.08605159]
[1739325115741,0.03401787,197.98,197.95,0.03355159]
[1739325116136,5.0521,197.97,197.95,0.03355159]
[1739325116335,0.03401787,197.98,197.95,0.03355159]
[1739325116841,5.0522,197.97,197.95,0.03355159]
[1739325118239,5.0522,197.96,197.95,0.03355159]
[1739325121640,13.81020812,197.98,197.84,1.4596]
[1739325121839,13.77619025,197.93,197.84,1.4596]
[1739325122050,13.77619025,197.93,197.83,47.25627585]
[1739325122243,5.0543,197.89,197.83,52.31177585]
[1739325122543,13.77619025,197.93,197.83,52.31177585]
[1739325122748,5.0544,197.88,197.86,0.03853179]
[1739325123448,0.03668474,197.9,197.86,0.03853179]
[1739325123449,5.0546,197.87,197.86,0.03853179]
[1739325123749,13.8896109,197.87,197.86,0.03853179]
[1739325124549,8.8350109,197.87,197.86,0.03853179]
[1739325124739,5.0543,197.88,197.86,0.03853179]
[1739325125148,8.8350109,197.89,197.86,0.03853179]
[1739325125449,0.03668474,197.9,197.86,0.03853179]
[1739325126347,5.09058474,197.9,197.86,0.03853179]
[1739325126649,0.03668474,197.9,197.86,0.03853179]
[1739325126846,0.03668474,197.9,197.88,5.0543]
[1739325127150,0.03668474,197.9,197.86,0.03853179]
[1739325127448,5.09058474,197.9,197.86,0.03853179]
[1739325127645,0.03668474,197.9,197.86,0.03853179]
[1739325128046,13.79559334,197.89,197.86,0.03853179]
[1739325128449,5.0546,197.87,197.86,0.03853179]
[1739325129751,5.0543,197.88,197.86,0.03853179]
[1739325130451,1.5944,197.89,197.86,0.03853179]
[1739325130653,5.0546,197.87,197.86,0.03853179]
[1739325131752,5.0546,197.87,197.76,13.79559334]
[1739325131753,5.0557,197.83,197.77,5.0571]
[1739325131951,13.79559334,197.86,197.75,4.6194]
[1739325132151,13.79559334,197.86,197.75,1.5531]
[1739325132751,5.056,197.82,197.76,5.0573]
[1739325132947,0.0327105,197.82,197.79,0.03404742]
[1739325133350,5.0563,197.8,197.79,0.03404742]
[1739325134853,5.0561,197.81,197.79,0.03404742]
[1739325135153,0.0327105,197.82,197.79,0.03404742]
[1739325135454,5.0561,197.81,197.79,0.03404742]
[1739325135655,0.0327105,197.82,197.79,0.03404742]
[1739325137954,5.0563,197.81,197.79,0.03404742]
[1739325138656,5.0886105,197.82,197.79,0.03404742]
[1739325138854,0.0327105,197.82,197.79,0.03404742]
[1739325141759,0.0327105,197.82,197.79,5.09054742]
[1739325142358,0.0327105,197.82,197.79,0.03404742]
[1739325143856,13.79559334,197.81,197.79,0.03404742]
[1739325144057,5.0572,197.77,197.72,5.0583]
[1739325144358,15.39479334,197.81,197.71,47.49647995]
[1739325144960,5.0569,197.78,197.71,47.49647995]
[1739325145259,0.03732439,197.78,197.74,0.03190077]
[1739325145459,0.03732439,197.78,197.75,5.0576]
[1739325145756,0.03732439,197.78,197.74,0.03190077]
[1739325146059,0.03732439,197.78,197.77,5.0571]
[1739325146858,0.03732439,197.78,197.76,5.0573]
[1739325148155,0.03732439,197.78,197.74,0.03190077]
[1739325148359,0.03732439,197.78,197.76,13.79559334]
[1739325148860,0.03732439,197.78,197.77,5.0571]
[1739325153967,0.03732439,197.78,197.75,1.5161]
[1739325154365,0.03732439,197.78,197.74,0.03190077]
[1739325154962,5.09422439,197.78,197.74,5.08960077]
[1739325155358,0.03732439,197.78,197.74,0.03190077]
[1739325155568,13.83291773,197.78,197.74,0.03190077]
[1739325157270,0.03732439,197.78,197.74,0.03190077]
[1739325158370,0.03732439,197.78,197.74,5.08960077]
[1739325158560,0.03732439,197.78,197.74,0.03190077]
[1739325159261,5.09442439,197.78,197.74,0.03190077]
[1739325159968,5.0572,197.77,197.74,0.03190077]
[1739325161169,0.03732439,197.78,197.74,0.03190077]
[1739325161367,5.09422439,197.78,197.74,0.03190077]
[1739325161568,0.03732439,197.78,197.76,5.0573]
[1739325163071,0.03732439,197.78,197.77,5.0571]
[1739325164071,13.79559334,197.87,197.78,5.0566]
[1739325164971,5.0555,197.84,197.78,5.0566]
[1739325165172,5.08902531,197.84,197.81,0.03205492]
[1739325165570,0.03352531,197.84,197.81,0.03205492]
[1739325165773,0.03352531,197.84,197.81,5.08805492]
[1739325165975,0.03352531,197.84,197.81,0.03205492]
[1739325167475,5.0558,197.83,197.81,0.03205492]
[1739325169282,5.08892531,197.84,197.81,0.03205492]
[1739325170780,0.03352531,197.84,197.81,0.03205492]
[1739325171681,5.0558,197.83,197.81,0.03205492]
[1739325171882,0.03352531,197.84,197.81,0.03205492]
[1739325172379,5.0558,197.83,197.81,0.03205492]
[1739325173081,5.0558,197.82,197.81,0.03205492]
[1739325174181,5.0556,197.83,197.81,0.03205492]
[1739325177382,0.03352531,197.84,197.81,0.03205492]
[1739325177582,5.0558,197.82,197.81,0.03205492]
[1739325178175,0.03352531,197.84,197.81,0.03205492]
[1739325178376,13.82911865,197.84,197.81,0.03205492]
[1739325179084,5.0558,197.82,197.81,0.03205492]
[1739325180976,13.82911865,197.84,197.7,142.90667149]
[1739325181282,1.53,197.87,197.71,5.0584]
[1739325181283,13.79559334,197.78,197.71,5.0584]
[1739325181784,5.0576,197.76,197.68,1.5694]
[1739325181976,13.79559334,197.78,197.7,5.0586]
[1739325182174,0.03341777,197.74,197.7,0.03619004]
[1739325183085,5.09131777,197.74,197.7,0.03619004]
[1739325185090,5.0582,197.73,197.7,0.03619004]
[1739325185287,0.03341777,197.74,197.7,0.03619004]
[1739325186482,5.0586,197.71,197.7,0.03619004]
[1739325187890,5.0593,197.69,197.63,1.508]
[1739325188592,13.79559334,197.72,197.63,1.508]
[1739325188786,5.059,197.7,197.63,6.5686]
[1739325188990,0.035249,197.69,197.66,0.03788736]
[1739325189190,5.0594,197.68,197.66,0.03788736]
[1739325189392,0.035249,197.69,197.66,0.03788736]
[1739325189890,5.0594,197.68,197.66,0.03788736]
[1739325190691,0.035249,197.69,197.66,0.03788736]
[1739325190892,5.094449,197.69,197.66,0.03788736]
[1739325193292,5.0595,197.68,197.66,0.03788736]
[1739325193684,0.035249,197.69,197.66,0.03788736]
[1739325195793,5.0595,197.68,197.66,0.03788736]
[1739325198392,5.0597,197.67,197.66,0.03788736]
[1739325199598,13.91117171,197.67,197.66,0.03788736]
[1739325200895,8.85147171,197.67,197.66,0.03788736]
[1739325201295,8.85147171,197.67,197.58,5.0619]
[1739325201596,13.91247171,197.62,197.56,8.85147171]
[1739325201796,13.91247171,197.62,197.56,13.91377171]
[1739325202196,8.85147171,197.62,197.56,8.85147171]
[1739325202397,0.03780788,197.61,197.57,0.03594836]
[1739325203299,8.85147171,197.6,197.57,0.03594836]
[1739325204692,13.91307171,197.6,197.57,0.03594836]
[1739325205891,8.85147171,197.6,197.57,0.03594836]
[1739325207096,13.91297171,197.6,197.57,0.03594836]
[1739325208401,5.0617,197.59,197.57,0.03594836]
[1739325208900,13.91297171,197.6,197.57,0.03594836]
[1739325217010,8.85147171,197.6,197.57,0.03594836]
[1739325217210,5.0618,197.59,197.57,0.03594836]
[1739325217411,8.85147171,197.58,197.57,0.03594836]
[1739325217707,13.91347171,197.58,197.57,0.03594836]
[1739325218812,8.85147171,197.58,197.57,0.03594836]
[1739325219111,8.85147171,197.6,197.57,0.03594836]
[1739325219513,13.91317171,197.6,197.57,0.03594836]
[1739325223320,0.03780788,197.61,197.57,5.09814836]
[1739325225517,0.03780788,197.61,197.57,0.03594836]
[1739325225714,5.09910788,197.61,197.57,0.03594836]
[1739325227421,5.0616,197.6,197.57,0.03594836]
[1739325228121,5.09910788,197.61,197.57,0.03594836]
[1739325232521,5.0615,197.6,197.57,0.03594836]
[1739325232824,0.03780788,197.61,197.57,0.03594836]
[1739325233821,5.09900788,197.61,197.57,0.03594836]
[1739325237326,5.0615,197.6,197.57,0.03594836]
[1739325237629,0.03780788,197.61,197.57,0.03594836]
[1739325238029,5.09920788,197.61,197.57,0.03594836]
[1739325239728,5.09920788,197.61,197.57,5.09814836]
[1739325240028,0.03780788,197.61,197.57,5.09814836]
[1739325240532,5.09910788,197.61,197.57,0.03594836]
[1739325241734,0.03780788,197.61,197.57,0.03594836]
[1739325243632,5.09910788,197.61,197.57,0.03594836]
[1739325248732,0.03780788,197.61,197.57,0.03594836]
[1739325248934,5.0615,197.6,197.57,0.03594836]
[1739325250135,5.09900788,197.61,197.57,0.03594836]
[1739325250634,5.0615,197.6,197.57,0.03594836]
[1739325251434,0.03780788,197.61,197.57,0.03594836]
[1739325251634,5.09910788,197.61,197.57,0.03594836]
[1739325253435,0.03780788,197.61,197.57,0.03594836]
[1739325254137,5.0617,197.59,197.57,0.03594836]
[1739325257139,0.03780788,197.61,197.57,0.03594836]
[1739325257333,5.062,197.58,197.57,0.03594836]
[1739325268252,0.03780788,197.61,197.57,0.03594836]
[1739325268951,0.03780788,197.61,197.57,5.09814836]
[1739325269648,5.09900788,197.61,197.57,0.03594836]
[1739325269853,0.03780788,197.61,197.57,0.03594836]
[1739325270552,5.0617,197.6,197.57,0.03594836]
[1739325273253,0.03780788,197.61,197.57,0.03594836]
[1739325273451,5.09910788,197.61,197.57,0.03594836]
[1739325273859,5.0615,197.6,197.57,0.03594836]
[1739325274655,0.03780788,197.61,197.6,5.0615]
[1739325274860,10.07523676,197.68,197.6,8.85147171]
[1739325275057,149.69043631,197.69,197.67,8.85147171]
[1739325275860,139.61519955,197.69,197.67,8.85147171]
[1739325278165,0.03624086,197.7,197.67,8.85147171]
[1739325279064,0.03624086,197.7,197.66,0.033534]
[1739325279065,0.03624086,197.7,197.69,8.85147171]
[1739325279667,8.88771257,197.7,197.66,0.033534]
[1739325280869,8.85147171,197.68,197.66,0.033534]
[1739325281164,8.88771257,197.7,197.66,0.033534]
[1739325282767,13.94671257,197.7,197.66,0.033534]
[1739325283163,0.03624086,197.7,197.66,0.033534]
[1739325283368,0.03624086,197.7,197.69,8.85147171]
[1739325284769,0.03624086,197.7,197.69,13.91067171]
[1739325289473,1.5541,197.78,197.69,8.85147171]
[1739325289670,5.0572,197.77,197.73,8.85147171]
[1739325290667,5.09017998,197.77,197.73,8.88832296]
[1739325290973,5.09017998,197.77,197.73,13.94642296]
[1739325291877,5.0574,197.76,197.73,13.94642296]
[1739325292975,5.0574,197.76,197.73,8.88832296]
[1739325293165,5.0574,197.76,197.73,0.03685125]
[1739325293371,0.03297998,197.77,197.73,0.03685125]
[1739325293575,5.09007998,197.77,197.73,0.03685125]
[1739325294076,5.0574,197.76,197.73,0.03685125]
[1739325294977,5.0574,197.76,197.73,8.88832296]
[1739325296879,5.0579,197.74,197.73,0.03685125]
[1739325297879,0.03297998,197.77,197.73,0.03685125]
[1739325298380,5.0576,197.76,197.73,0.03685125]
[1739325298575,8.85147171,197.76,197.73,0.03685125]
[1739325298976,5.0579,197.74,197.73,0.03685125]
[1739325300280,13.90937171,197.74,197.73,0.03685125]
[1739325300581,8.85147171,197.74,197.65,8.85147171]
[1739325300878,8.85147171,197.72,197.67,5.0596]
[1739325301376,1.5549,197.75,197.7,5.0588]
[1739325301377,8.85147171,197.74,197.7,5.0588]
[1739325301578,0.03618322,197.71,197.7,5.0588]
[1739325306282,0.03618322,197.71,197.69,8.85147171]
[1739325306483,0.03618322,197.71,197.69,13.91057171]
[1739325307879,0.03618322,197.71,197.7,5.0589]
[1739325309781,0.03618322,197.71,197.69,8.85147171]
[1739325310287,0.03618322,197.71,197.7,5.0589]
[1739325311887,0.03618322,197.71,197.69,10.45897171]
[1739325312787,0.03618322,197.71,197.69,13.91047171]
[1739325313188,0.03618322,197.71,197.7,5.0589]
[1739325316586,5.0565,197.8,197.75,5.0575]
[1739325316783,10.42747171,197.82,197.75,5.0575]
[1739325316784,10.42747171,197.82,197.75,13.90897171]
[1739325317787,0.03387399,197.8,197.77,0.03741833]
[1739325318594,5.0569,197.78,197.77,0.03741833]
[1739325324086,5.0566,197.79,197.77,0.03741833]
[1739325324292,0.03387399,197.8,197.77,8.88889004]
[1739325324792,5.09027399,197.8,197.77,8.88889004]
[1739325332489,0.03387399,197.8,197.77,8.88889004]
[1739325332696,8.85147171,197.79,197.77,0.03741833]
[1739325332989,0.03387399,197.8,197.77,0.03741833]
[1739325333796,5.0569,197.78,197.77,0.03741833]
[1739325337395,0.03387399,197.8,197.77,0.03741833]
[1739325337595,5.0567,197.79,197.77,0.03741833]
[1739325337897,0.03387399,197.8,197.77,8.88889004]
[1739325339198,0.03387399,197.8,197.79,8.85147171]
[1739325339401,0.03387399,197.8,197.79,13.90807171]
[1739325340102,139.61519955,197.88,197.86,8.85147171]
[1739325341192,139.61519955,197.88,197.87,5.0546]
[1739325341398,0.03866941,197.89,197.86,8.85147171]